[Event "FIDE WCCC Open-12 2024"]
[Site "Montesilvano"]
[Date "2024.11.24"]
[Round "9.8"]
[White "Batbaatar, Baatar"]
[Black "Kuandykuly, Danis"]
[Result "0-1"]
[ECO "C82"]
[WhiteElo "2030"]
[BlackElo "2199"]
[Annotator "RC"]
[PlyCount "84"]
[EventDate "2024.11.18"]
[EventType "swiss"]
[EventCountry "ITA"]
[SourceTitle "playchess.com"]
[Source "ChessBase"]
[SourceQuality "1"]
[TimeControl "5400+30"]

1. e4 {[%emt 0:00:05]} e5 {[%emt 0:01:05]} 2. Nf3 {[%emt 0:00:09]} Nc6 {[%emt 0:00:22]} 3. Bb5 {[%emt 0:00:08]} a6 {[%emt 0:00:05]} 4. Ba4 {[%emt 0:00:05]} Nf6 {[%emt 0:00:04]} 5. O-O {[%emt 0:00:07]} Nxe4 {[%emt 0:01:09]} 6. d4 {[%emt 0:00:10]} b5 {[%emt 0:00:05]} 7. Bb3 {[%emt 0:00:06]} d5 {[%emt 0:00:05]} 8. dxe5 {[%emt 0:00:15]} Be6 {[%emt 0:00:06]} 9. c3 {[%emt 0:02:14]} Bc5 {[%emt 0:00:12]} 10. Nbd2 {[%emt 0:06:02]} O-O {[%emt 0:00:14]} 11. Bc2 {[%emt 0:04:51]} Nxf2 {[%emt 0:00:26]} 12. Rxf2 {[%emt 0:00:17]} f6 {[%emt 0:00:04]} 13. Nf1 {[%emt 0:09:15]} Bxf2+ {[%emt 0:00:14]} 14. Kxf2 {[%emt 0:00:09]} fxe5 {[%emt 0:00:03]} 15. Kg1 {[%emt 0:01:32]} Bg4 {[%emt 0:00:54]} 16. Ne3 {[%emt 0:06:30]} Be6 {[%emt 0:00:09]} 17. Nf1 {[%emt 0:09:52]} h6 {[%emt 0:11:30]} 18. Be3 {[%emt 0:02:25]} Qf6 {[%emt 0:25:45]} 19. a4 {[%emt 0:09:52]} Rad8 {[%emt 0:19:37]} 20. axb5 {[%emt 0:09:46]} axb5 {[%emt 0:00:15]} 21. Ra6 {[%emt 0:01:13]} Bc8 {[%emt 0:02:23]} 22. Rxc6 {[%emt 0:01:50]} Qxc6 {[%emt 0:00:30]} 23. Nxe5 {[%emt 0:00:25]} Qe8 {[%emt 0:04:19]} 24. Nf3 {[%emt 0:03:47]} Bf5 {[%emt 0:07:54]} 25. Bxf5 {[%emt 0:03:12]} Rxf5 {[%emt 0:00:07]} 26. Qd3 {[%emt 0:00:21]} Qe4 {[%emt 0:06:41]} 27. Qxb5 {[%emt 0:02:37]} Rd6 {[%emt 0:03:38]} 28. Qe2 {[%emt 0:02:08]} Rf7 {[%emt 0:01:39]} 29. b4 {[%emt 0:07:00]} Re6 {[%emt 0:02:41]} 30. Qf2 {[%emt 0:01:37]} Rfe7 {[%emt 0:02:58]} 31. Bd4 {[%emt 0:02:59]} Qb1 {[%emt 0:01:22]} 32. N3d2 {[%emt 0:04:26]} Qd1 {[%emt 0:04:36]} 33. Qf3 {[%emt 0:01:20]} Re2 {[%emt 0:00:15]} 34. Qxd5+ {[%emt 0:01:56]} Rf7 {[%emt 0:03:05]} 35. Nf3 {[%emt 0:00:36]} c6 {[%emt 0:00:33]} 36. Qxc6 {[%emt 0:01:29]} Kh7 {[%emt 0:01:27]} 37. b5 {[%emt 0:02:49]} Qc2 {[%emt 0:00:20]} 38. Kh1 {[%emt 0:04:28]} Qd1 {[%emt 0:01:15]} 39. Kg1 {[%emt 0:00:08]} Qc2 {[%emt 0:00:14]} 40. Kh1 {[%emt 0:00:15]} Qb1 {[%emt 0:00:09]} 41. Kg1 {[%emt 0:00:08]} Qa2 {[%emt 0:00:58]} 42. Ne5 {[%emt 0:01:52]} Rxe5 {[%emt 0:02:02]} 0-1

[Event "FIDE WCCC Open-12 2024"]
[Site "Montesilvano"]
[Date "2024.11.24"]
[Round "9.9"]
[White "Kleschevnikov, Arseny"]
[Black "Guo, Ethan"]
[Result "0-1"]
[ECO "A50"]
[WhiteElo "1893"]
[BlackElo "2157"]
[Annotator "RC"]
[PlyCount "76"]
[EventDate "2024.11.18"]
[EventType "swiss"]
[EventCountry "ITA"]
[SourceTitle "playchess.com"]
[Source "ChessBase"]
[SourceQuality "1"]
[TimeControl "5400+30"]

1. d4 {[%emt 0:00:04]} Nf6 {[%emt 0:00:05]} 2. c4 {[%emt 0:00:02]} e6 {[%emt 0:00:14]} 3. Bf4 {[%emt 0:02:23]} Bb4+ {[%emt 0:02:31]} 4. Nd2 {[%emt 0:00:28]} b6 {[%emt 0:00:25]} 5. a3 {[%emt 0:07:35]} Bxd2+ {[%emt 0:00:36]} 6. Qxd2 {[%emt 0:00:07]} Bb7 {[%emt 0:00:15]} 7. e3 {[%emt 0:03:29]} d6 {[%emt 0:01:24]} 8. Ne2 {[%emt 0:03:13]} Ne4 {[%emt 0:06:40]} 9. Qc2 {[%emt 0:03:21]} g5 {[%emt 0:03:02]} 10. Bg3 {[%emt 0:02:58]} Nd7 {[%emt 0:03:27]} 11. f3 {[%emt 0:10:28]} Nxg3 {[%emt 0:01:15]} 12. Nxg3 {[%emt 0:00:31]} h5 {[%emt 0:03:34]} 13. Bd3 {[%emt 0:06:11]} h4 {[%emt 0:02:10]} 14. Ne4 {[%emt 0:00:05]} f5 {[%emt 0:04:31]} 15. Nc3 {[%emt 0:12:34]} h3 {[%emt 0:04:49]} 16. e4 {[%emt 0:45:01]} Qf6 {[%emt 0:10:43]} 17. Nb5 {[%emt 0:00:00]} O-O-O {[%emt 0:10:02]} 18. Nxa7+ {[%emt 0:00:00]} Kb8 {[%emt 0:01:13]} 19. Nb5 {[%emt 0:00:00]} c6 {[%emt 0:00:57]} 20. Nxd6 {[%emt 0:00:00]} Qxd4 {[%emt 0:00:13]} 21. Nxb7 {[%emt 0:00:00]} Qe3+ {[%emt 0:00:11]} 22. Kf1 {[%emt 0:00:00]} Kxb7 {[%emt 0:00:14]} 23. Re1 {[%emt 0:00:00]} hxg2+ {[%emt 0:00:43]} 24. Kxg2 {[%emt 0:00:00]} Qf4 {[%emt 0:00:03]} 25. Qc1 {[%emt 0:00:00]} Ne5 {[%emt 0:01:00]} 26. Qxf4 {[%emt 0:00:00]} gxf4 {[%emt 0:00:04]} 27. exf5 {[%emt 0:00:00]} Rhg8+ {[%emt 0:00:38]} 28. Kh3 {[%emt 0:00:00]} Nxd3 {[%emt 0:00:09]} 29. Rxe6 {[%emt 0:00:00]} Nf2+ {[%emt 0:00:07]} 30. Kh4 {[%emt 0:00:00]} Nxh1 {[%emt 0:00:08]} 31. f6 {[%emt 0:00:00]} Rd7 {[%emt 0:00:07]} 32. Re7 {[%emt 0:00:00]} Rxe7 {[%emt 0:00:13]} 33. fxe7 {[%emt 0:00:00]} Nf2 {[%emt 0:00:11]} 34. h3 {[%emt 0:00:00]} Kc7 {[%emt 0:00:05]} 35. b4 {[%emt 0:00:00]} Kd7 {[%emt 0:00:03]} 36. c5 {[%emt 0:00:00]} Kxe7 {[%emt 0:00:18]} 37. cxb6 {[%emt 0:00:00]} Kf6 {[%emt 0:00:07]} 38. b7 {[%emt 0:00:00]} Rh8# {[%emt 0:00:05]} 0-1

[Event "FIDE WCCC Open-12 2024"]
[Site "Montesilvano"]
[Date "2024.11.24"]
[Round "9.10"]
[White "Antipov, Fedor"]
[Black "Luger, Sam"]
[Result "0-1"]
[ECO "C79"]
[WhiteElo "1991"]
[BlackElo "2094"]
[Annotator "NA RC"]
[PlyCount "120"]
[EventDate "2024.11.18"]
[EventType "swiss"]
[EventCountry "ITA"]
[SourceTitle "playchess.com"]
[Source "ChessBase"]
[SourceQuality "1"]
[TimeControl "5400+30"]

1. e4 {[%emt 0:00:05]} e5 {[%emt 0:00:35]} 2. Nf3 {[%emt 0:00:05]} Nc6 {[%emt 0:00:03]} 3. Bb5 {[%emt 0:00:06]} a6 {[%emt 0:00:03]} 4. Ba4 {[%emt 0:00:04]} Nf6 {[%emt 0:00:04]} 5. O-O {[%emt 0:00:07]} d6 {[%emt 0:00:02]} 6. c3 {[%emt 0:10:18]} Bd7 {[%emt 0:01:49]} 7. d4 {[%emt 0:03:15]} g6 {[%emt 0:01:50]} 8. Qe2 {[%emt 0:05:53]} b5 {[%emt 0:15:50]} 9. Bc2 {[%emt 0:06:43]} Bg7 {[%emt 0:07:16]} 10. a4 {[%emt 0:06:27]} O-O {[%emt 0:10:22]} 11. axb5 {[%emt 0:14:15]} axb5 {[%emt 0:01:01]} 12. Rxa8 {[%emt 0:00:31]} Qxa8 {[%emt 0:00:15]} 13. Bd3 {[%emt 0:09:15]} exd4 {[%emt 0:17:46]} 14. cxd4 {[%emt 0:10:31]} Bg4 {[%emt 0:11:51]} 15. Be3 {[%emt 0:04:43]} Nb4 {[%emt 0:09:37]} 16. Bxb5 {[%emt 0:04:13]} Qxe4 {[%emt 0:02:19]} 17. Nc3 {[%emt 0:04:18]} Qb7 {[%emt 0:03:33]} 18. h3 {[%emt 0:03:09]} Bxf3 {[%emt 0:01:23]} 19. Qxf3 {[%emt 0:00:10]} Qxf3 {[%emt 0:00:05]} 20. gxf3 {[%emt 0:00:03]} Nfd5 {[%emt 0:06:22]} 21. Bc4 {[%emt 0:03:52]} Ne7 {[%emt 0:05:08]} 22. Ra1 {[%emt 0:04:01]} Nf5 {[%emt 0:00:41]} 23. d5 {[%emt 0:03:18]} Nc2 {[%emt 0:01:14]} 24. Ra7 {[%emt 0:00:20]} Ncxe3 {[%emt 0:00:15]} 25. fxe3 {[%emt 0:00:06]} Nxe3 {[%emt 0:00:25]} 26. Rxc7 {[%emt 0:01:22]} Rb8 {[%emt 0:00:36]} 27. Ne4 {[%emt 0:05:41]} Bd4 {[%emt 0:01:14]} 28. Kh1 {[%emt 0:01:03]} Rxb2 {[%emt 0:00:37]} 29. f4 {[%emt 0:00:34]} Nf5 {[%emt 0:00:55]} 30. Bf1 {[%emt 0:00:31]} Rb1 {[%emt 0:00:32]} 31. Nd2 {[%emt 0:00:29]} Rd1 {[%emt 0:00:06]} 32. Rc2 {[%emt 0:00:23]} Be3 {[%emt 0:00:19]} 33. Ne4 {[%emt 0:00:34]} Rxf1+ {[%emt 0:00:11]} 34. Kg2 {[%emt 0:00:07]} Rg1+ {[%emt 0:00:08]} 35. Kh2 {[%emt 0:00:05]} Rd1 {[%emt 0:00:14]} 36. Rc7 {[%emt 0:00:28]} Bxf4+ {[%emt 0:00:08]} 37. Kg2 {[%emt 0:00:04]} Be5 {[%emt 0:00:06]} 38. Ng5 {[%emt 0:00:27]} Nh6 {[%emt 0:00:32]} 39. Rc8+ {[%emt 0:00:13]} Kg7 {[%emt 0:00:05]} 40. Rc7 {[%emt 0:00:22]} Rxd5 {[%emt 0:00:23]} 41. Ne6+ {[%emt 0:00:09]} Kf6 {[%emt 0:00:13]} 42. Nf8 {[%emt 0:00:14]} Rd2+ {[%emt 0:00:50]} 43. Kf3 {[%emt 0:00:01]} Rd3+ {[%emt 0:00:11]} 44. Ke2 {[%emt 0:00:09]} Rc3 {[%emt 0:00:10]} 45. Rb7 {[%emt 0:00:23]} Bf4 {[%emt 0:00:16]} 46. h4 {[%emt 0:00:28]} Nf5 {[%emt 0:00:11]} 47. Nd7+ {[%emt 0:00:15]} Kg7 {[%emt 0:00:07]} 48. h5 {[%emt 0:00:11]} gxh5 {[%emt 0:00:09]} 49. Rb4 {[%emt 0:00:20]} Bg5 {[%emt 0:00:30]} 50. Nb6 {[%emt 0:00:21]} Rc5 {[%emt 0:00:12]} 51. Nd7 {[%emt 0:00:13]} Rc7 {[%emt 0:00:06]} 52. Nb8 {[%emt 0:00:05]} h4 {[%emt 0:00:10]} 53. Na6 {[%emt 0:00:05]} Ra7 {[%emt 0:00:18]} 54. Nb8 {[%emt 0:00:05]} Ne7 {[%emt 0:00:19]} 55. Kf3 {[%emt 0:00:17]} d5 {[%emt 0:00:16]} 56. Kg4 {[%emt 0:00:12]} h6 {[%emt 0:00:07]} 57. Kh5 {[%emt 0:00:09]} Ng8 {[%emt 0:00:14]} 58. Kg4 {[%emt 0:00:18]} Ra3 {[%emt 0:00:13]} 59. Nc6 {[%emt 0:00:16]} Re3 {[%emt 0:00:19]} 60. Kf5 {[%emt 0:00:22]} Ne7+ {[%emt 0:00:11]} 0-1

[Event "FIDE WCCC Open-12 2024"]
[Site "Montesilvano"]
[Date "2024.11.24"]
[Round "9.11"]
[White "Abdsattar, Alisher"]
[Black "Bulgak, Damir"]
[Result "1/2-1/2"]
[ECO "C54"]
[WhiteElo "2082"]
[BlackElo "2044"]
[Annotator "NA RC"]
[PlyCount "43"]
[EventDate "2024.11.18"]
[EventType "swiss"]
[EventCountry "ITA"]
[SourceTitle "playchess.com"]
[Source "ChessBase"]
[SourceQuality "1"]
[TimeControl "5400+30"]

1. e4 {[%emt 0:00:02]} e5 {[%emt 0:00:26]} 2. Nf3 {[%emt 0:00:14]} Nc6 {[%emt 0:00:20]} 3. Bc4 {[%emt 0:00:04]} Nf6 {[%emt 0:00:50]} 4. d3 {[%emt 0:00:11]} Bc5 {[%emt 0:00:49]} 5. c3 {[%emt 0:00:33]} O-O {[%emt 0:00:39]} 6. O-O {[%emt 0:00:18]} d5 {[%emt 0:00:42]} 7. exd5 {[%emt 0:00:19]} Nxd5 {[%emt 0:00:14]} 8. Re1 {[%emt 0:00:57]} Bg4 {[%emt 0:00:32]} 9. h3 {[%emt 0:00:25]} Bh5 {[%emt 0:00:12]} 10. Nbd2 {[%emt 0:00:09]} Nb6 {[%emt 0:00:32]} 11. Bb3 {[%emt 0:00:40]} Qxd3 {[%emt 0:01:01]} 12. Nxe5 {[%emt 0:00:41]} Qf5 {[%emt 0:00:18]} 13. Nef3 {[%emt 0:00:09]} Rad8 {[%emt 0:01:32]} 14. Qe2 {[%emt 0:03:06]} Qc8 {[%emt 0:04:09]} 15. Qb5 {[%emt 0:03:23]} Qf5 {[%emt 0:00:39]} 16. Qe2 {[%emt 0:00:55]} Qc8 {[%emt 0:03:28]} 17. Qb5 {[%emt 0:00:23]} Qf5 {[%emt 0:03:02]} 18. Qe2 {[%emt 0:08:53]} Qc8 {[%emt 0:01:39]} 19. Qb5 {[%emt 0:06:06]} Qf5 {[%emt 0:01:31]} 20. Qe2 {[%emt 0:01:03]} Qc8 {[%emt 0:01:05]} 21. Qb5 {[%emt 0:03:05]} Qf5 {[%emt 0:01:08]} 22. Qe2 {[%emt 0:00:33]} 1/2-1/2

[Event "FIDE WCCC Open-12 2024"]
[Site "Montesilvano"]
[Date "2024.11.24"]
[Round "9.12"]
[White "Diachek, Andrii"]
[Black "Marchand, Calix"]
[Result "0-1"]
[ECO "B44"]
[WhiteElo "2162"]
[BlackElo "2027"]
[Annotator "RC"]
[PlyCount "130"]
[EventDate "2024.11.18"]
[EventType "swiss"]
[EventCountry "ITA"]
[SourceTitle "playchess.com"]
[Source "ChessBase"]
[SourceQuality "1"]
[TimeControl "5400+30"]

1. e4 {[%emt 0:00:03]} c5 {[%emt 0:00:09]} 2. Nf3 {[%emt 0:00:05]} e6 {[%emt 0:00:07]} 3. d4 {[%emt 0:00:03]} cxd4 {[%emt 0:00:14]} 4. Nxd4 {[%emt 0:00:08]} Nc6 {[%emt 0:00:22]} 5. Nb5 {[%emt 0:00:12]} d6 {[%emt 0:00:38]} 6. c4 {[%emt 0:00:08]} Nf6 {[%emt 0:00:41]} 7. N1c3 {[%emt 0:00:11]} a6 {[%emt 0:00:33]} 8. Na3 {[%emt 0:00:14]} Qa5 {[%emt 0:00:13]} 9. Bd3 {[%emt 0:10:02]} Be7 {[%emt 0:07:13]} 10. O-O {[%emt 0:01:46]} O-O {[%emt 0:01:06]} 11. Be2 {[%emt 0:15:15]} Rd8 {[%emt 0:04:46]} 12. Bd2 {[%emt 0:13:36]} Qe5 {[%emt 0:02:41]} 13. Bf3 {[%emt 0:03:35]} Nd4 {[%emt 0:11:21]} 14. Nc2 {[%emt 0:04:42]} Nxf3+ {[%emt 0:03:34]} 15. Qxf3 {[%emt 0:00:10]} Bd7 {[%emt 0:10:14]} 16. Be3 {[%emt 0:09:21]} Qa5 {[%emt 0:02:09]} 17. Bd4 {[%emt 0:06:00]} Rac8 {[%emt 0:01:35]} 18. Qe3 {[%emt 0:05:33]} Qh5 {[%emt 0:15:02]} 19. Qd3 {[%emt 0:02:29]} Ng4 {[%emt 0:02:01]} 20. h3 {[%emt 0:00:35]} Ne5 {[%emt 0:00:21]} 21. Bxe5 {[%emt 0:00:09]} dxe5 {[%emt 0:03:20]} 22. Ne3 {[%emt 0:05:02]} Bg5 {[%emt 0:05:48]} 23. Ng4 {[%emt 0:02:09]} Bf4 {[%emt 0:02:34]} 24. Rad1 {[%emt 0:04:20]} Qg5 {[%emt 0:02:14]} 25. Qe2 {[%emt 0:01:47]} h5 {[%emt 0:01:14]} 26. Nh2 {[%emt 0:00:20]} Qg6 {[%emt 0:03:39]} 27. Nf3 {[%emt 0:01:30]} Qf6 {[%emt 0:00:01]} 28. Rd6 {[%emt 0:01:52]} Bc6 {[%emt 0:03:34]} 29. Rxd8+ {[%emt 0:00:34]} Rxd8 {[%emt 0:00:17]} 30. Rd1 {[%emt 0:00:14]} h4 {[%emt 0:00:59]} 31. b4 {[%emt 0:04:09]} Qe7 {[%emt 0:01:42]} 32. Rxd8+ {[%emt 0:01:38]} Qxd8 {[%emt 0:00:01]} 33. c5 {[%emt 0:00:21]} Qd7 {[%emt 0:02:44]} 34. Kf1 {[%emt 0:01:42]} g6 {[%emt 0:01:51]} 35. Ke1 {[%emt 0:01:50]} Kg7 {[%emt 0:01:27]} 36. Qd1 {[%emt 0:01:10]} Qc7 {[%emt 0:01:39]} 37. Qd3 {[%emt 0:01:49]} Be8 {[%emt 0:01:27]} 38. Nxh4 {[%emt 0:02:53]} a5 {[%emt 0:02:24]} 39. a3 {[%emt 0:00:18]} axb4 {[%emt 0:00:51]} 40. axb4 {[%emt 0:00:04]} b6 {[%emt 0:01:59]} 41. cxb6 {[%emt 0:02:26]} Qxb6 {[%emt 0:00:02]} 42. Qc4 {[%emt 0:00:26]} Qa7 {[%emt 0:01:39]} 43. g3 {[%emt 0:00:34]} Qa1+ {[%emt 0:01:07]} 44. Ke2 {[%emt 0:00:01]} Qb2+ {[%emt 0:01:06]} 45. Kf1 {[%emt 0:00:55]} Qc1+ {[%emt 0:00:23]} 46. Kg2 {[%emt 0:00:38]} Bd2 {[%emt 0:00:07]} 47. Nf3 {[%emt 0:00:28]} Qxc3 {[%emt 0:01:03]} 48. Qa6 {[%emt 0:00:29]} Qxb4 {[%emt 0:00:54]} 49. Qc8 {[%emt 0:00:24]} Bb5 {[%emt 0:00:36]} 50. Qc7 {[%emt 0:00:39]} Qxe4 {[%emt 0:00:54]} 51. Qxe5+ {[%emt 0:00:25]} Qxe5 {[%emt 0:00:01]} 52. Nxe5 {[%emt 0:00:05]} f5 {[%emt 0:01:02]} 53. Kg1 {[%emt 0:00:33]} Be2 {[%emt 0:00:46]} 54. f4 {[%emt 0:00:53]} Be3+ {[%emt 0:00:38]} 55. Kg2 {[%emt 0:00:06]} Bd4 {[%emt 0:00:12]} 56. Nc6 {[%emt 0:00:13]} Bc3 {[%emt 0:00:11]} 57. Na7 {[%emt 0:00:56]} Ba6 {[%emt 0:00:47]} 58. Kh2 {[%emt 0:00:11]} Kf6 {[%emt 0:00:39]} 59. g4 {[%emt 0:00:30]} Ke7 {[%emt 0:00:55]} 60. Kg3 {[%emt 0:00:43]} Be1+ {[%emt 0:00:14]} 61. Kf3 {[%emt 0:00:06]} Kd7 {[%emt 0:00:26]} 62. Ke3 {[%emt 0:01:05]} Bc3 {[%emt 0:00:18]} 63. Kf3 {[%emt 0:00:28]} Bd4 {[%emt 0:00:28]} 64. Kg3 {[%emt 0:00:40]} Bxa7 {[%emt 0:00:04]} 65. Kh4 {[%emt 0:00:05]} Ke7 {[%emt 0:00:20]} 0-1

[Event "FIDE WCCC Open-12 2024"]
[Site "Montesilvano"]
[Date "2024.11.24"]
[Round "9.13"]
[White "Sun, Kevin"]
[Black "Torres Rebolledo, Alvaro"]
[Result "0-1"]
[ECO "B13"]
[WhiteElo "1966"]
[BlackElo "2216"]
[Annotator "RC"]
[PlyCount "130"]
[EventDate "2024.11.18"]
[EventType "swiss"]
[EventCountry "ITA"]
[SourceTitle "playchess.com"]
[Source "ChessBase"]
[SourceQuality "1"]
[TimeControl "5400+30"]

1. e4 {[%emt 0:00:02]} c6 {[%emt 0:00:55]} 2. d4 {[%emt 0:00:28]} d5 {[%emt 0:00:08]} 3. exd5 {[%emt 0:00:11]} cxd5 {[%emt 0:00:09]} 4. Bd3 {[%emt 0:00:10]} Nc6 {[%emt 0:00:09]} 5. c3 {[%emt 0:00:10]} Qc7 {[%emt 0:00:10]} 6. Ne2 {[%emt 0:00:07]} Bg4 {[%emt 0:00:11]} 7. O-O {[%emt 0:00:11]} e6 {[%emt 0:00:13]} 8. Qe1 {[%emt 0:00:10]} Nf6 {[%emt 0:00:13]} 9. Bg5 {[%emt 0:00:25]} Bxe2 {[%emt 0:00:27]} 10. Qxe2 {[%emt 0:00:09]} h6 {[%emt 0:01:12]} 11. Be3 {[%emt 0:00:30]} Bd6 {[%emt 0:00:31]} 12. g3 {[%emt 0:00:24]} O-O {[%emt 0:00:24]} 13. Nd2 {[%emt 0:00:06]} a6 {[%emt 0:00:54]} 14. a4 {[%emt 0:02:05]} Rfe8 {[%emt 0:00:26]} 15. f4 {[%emt 0:01:38]} Ne7 {[%emt 0:05:27]} 16. Nf3 {[%emt 0:05:03]} Nf5 {[%emt 0:08:18]} 17. Ne5 {[%emt 0:06:06]} h5 {[%emt 0:11:35]} 18. Rae1 {[%emt 0:12:01]} Reb8 {[%emt 0:13:58]} 19. Bd2 {[%emt 0:10:31]} b5 {[%emt 0:11:51]} 20. axb5 {[%emt 0:02:33]} axb5 {[%emt 0:01:10]} 21. Ra1 {[%emt 0:04:57]} b4 {[%emt 0:04:06]} 22. Kg2 {[%emt 0:14:40]} bxc3 {[%emt 0:09:34]} 23. bxc3 {[%emt 0:01:32]} Ne4 {[%emt 0:03:56]} 24. Bxe4 {[%emt 0:03:44]} Rxa1 {[%emt 0:03:40]} 25. Rxa1 {[%emt 0:00:54]} dxe4 {[%emt 0:00:09]} 26. Qxe4 {[%emt 0:02:59]} Bxe5 {[%emt 0:00:42]} 27. fxe5 {[%emt 0:00:31]} Rb2 {[%emt 0:00:32]} 28. Qd3 {[%emt 0:01:11]} h4 {[%emt 0:04:37]} 29. Rf1 {[%emt 0:07:03]} Qb7+ {[%emt 0:02:34]} 30. Kh3 {[%emt 0:02:19]} g6 {[%emt 0:06:04]} 31. Rf2 {[%emt 0:07:14]} Qh1 {[%emt 0:03:47]} 32. Be1 {[%emt 0:00:36]} Rb8 {[%emt 0:01:33]} 33. Rf1 {[%emt 0:00:46]} Qc6 {[%emt 0:01:38]} 34. Qf3 {[%emt 0:00:36]} Qc7 {[%emt 0:00:42]} 35. g4 {[%emt 0:00:49]} Ng7 {[%emt 0:00:43]} 36. Bxh4 {[%emt 0:01:58]} Rb2 {[%emt 0:00:40]} 37. Ra1 {[%emt 0:01:37]} Rc2 {[%emt 0:01:09]} 38. Ra3 {[%emt 0:01:46]} f5 {[%emt 0:01:02]} 39. gxf5 {[%emt 0:01:51]} gxf5 {[%emt 0:00:59]} 40. Bf6 {[%emt 0:01:03]} Kh7 {[%emt 0:02:03]} 41. Qg3 {[%emt 0:05:47]} Nh5 {[%emt 0:00:16]} 42. Qg5 {[%emt 0:00:26]} Rxc3+ {[%emt 0:00:21]} 43. Kh4 {[%emt 0:00:11]} Nxf6 {[%emt 0:02:52]} 44. Rxc3 {[%emt 0:01:08]} Qxc3 {[%emt 0:00:00]} 45. Qxf6 {[%emt 0:01:23]} Qxd4+ {[%emt 0:00:00]} 46. Kg3 {[%emt 0:00:05]} Qe3+ {[%emt 0:00:00]} 47. Kg2 {[%emt 0:00:07]} Qe2+ {[%emt 0:00:00]} 48. Kg3 {[%emt 0:00:11]} Qg4+ {[%emt 0:00:00]} 49. Kf2 {[%emt 0:00:04]} Qf4+ {[%emt 0:00:50]} 50. Kg2 {[%emt 0:00:07]} Qh6 {[%emt 0:00:58]} 51. Qd8 {[%emt 0:03:39]} Qg7+ {[%emt 0:00:06]} 52. Kf3 {[%emt 0:00:44]} Qxe5 {[%emt 0:00:08]} 53. Qe7+ {[%emt 0:00:36]} Kh6 {[%emt 0:00:11]} 54. Qf8+ {[%emt 0:00:33]} Qg7 {[%emt 0:00:59]} 55. Qd6 {[%emt 0:00:07]} Qg4+ {[%emt 0:00:14]} 56. Ke3 {[%emt 0:00:18]} Qe4+ {[%emt 0:00:09]} 57. Kf2 {[%emt 0:00:27]} Qh4+ {[%emt 0:00:32]} 58. Kg2 {[%emt 0:00:19]} Qf6 {[%emt 0:00:36]} 59. Kf3 {[%emt 0:00:33]} Kg6 {[%emt 0:00:15]} 60. Qg3+ {[%emt 0:00:40]} Qg5 {[%emt 0:00:09]} 61. Qe5 {[%emt 0:00:11]} Qg4+ {[%emt 0:00:08]} 62. Ke3 {[%emt 0:00:28]} Qh3+ {[%emt 0:00:36]} 63. Kf2 {[%emt 0:00:29]} Qh4+ {[%emt 0:00:05]} 64. Ke3 {[%emt 0:00:19]} Qe1+ {[%emt 0:00:13]} 65. Kf4 {[%emt 0:00:28]} Qf2# {[%emt 0:00:10]} 0-1

[Event "FIDE WCCC Open-12 2024"]
[Site "Montesilvano"]
[Date "2024.11.24"]
[Round "9.14"]
[White "Shilon Rahav, Eliran"]
[Black "Sobirov, Afruzbek"]
[Result "0-1"]
[ECO "C77"]
[WhiteElo "2150"]
[BlackElo "1928"]
[Annotator "RC"]
[PlyCount "143"]
[EventDate "2024.11.18"]
[EventType "swiss"]
[EventCountry "ITA"]
[SourceTitle "playchess.com"]
[Source "ChessBase"]
[SourceQuality "1"]
[TimeControl "5400+30"]

1. e4 {[%emt 0:00:02]} e5 {[%emt 0:00:06]} 2. Nf3 {[%emt 0:00:26]} Nc6 {[%emt 0:00:51]} 3. Bb5 {[%emt 0:00:48]} a6 {[%emt 0:01:52]} 4. Ba4 {[%emt 0:00:14]} Nf6 {[%emt 0:00:55]} 5. Qe2 {[%emt 0:00:49]} Bc5 {[%emt 0:01:53]} 6. c3 {[%emt 0:00:52]} b5 {[%emt 0:02:22]} 7. Bc2 {[%emt 0:01:56]} d6 {[%emt 0:00:54]} 8. O-O {[%emt 0:00:31]} O-O {[%emt 0:00:18]} 9. Rd1 {[%emt 0:01:23]} Bg4 {[%emt 0:08:20]} 10. h3 {[%emt 0:01:55]} Bh5 {[%emt 0:00:14]} 11. d3 {[%emt 0:01:58]} Qe7 {[%emt 0:08:24]} 12. Nbd2 {[%emt 0:03:33]} Rfe8 {[%emt 0:07:06]} 13. Nf1 {[%emt 0:01:59]} Rad8 {[%emt 0:01:47]} 14. g4 {[%emt 0:01:57]} Bg6 {[%emt 0:01:52]} 15. Ng3 {[%emt 0:01:42]} d5 {[%emt 0:03:35]} 16. Nh4 {[%emt 0:03:12]} dxe4 {[%emt 0:06:32]} 17. Nhf5 {[%emt 0:01:14]} Bxf5 {[%emt 0:07:51]} 18. Nxf5 {[%emt 0:00:20]} Qf8 {[%emt 0:00:17]} 19. dxe4 {[%emt 0:00:49]} Rxd1+ {[%emt 0:00:13]} 20. Bxd1 {[%emt 0:01:00]} Ne7 {[%emt 0:01:20]} 21. Bb3 {[%emt 0:04:04]} Nxf5 {[%emt 0:03:22]} 22. exf5 {[%emt 0:03:52]} e4 {[%emt 0:13:28]} 23. Bf4 {[%emt 0:04:47]} Bd6 {[%emt 0:06:53]} 24. Bxd6 {[%emt 0:06:41]} Qxd6 {[%emt 0:00:56]} 25. Rd1 {[%emt 0:01:12]} Qf4 {[%emt 0:01:03]} 26. Qe3 {[%emt 0:04:44]} Qxe3 {[%emt 0:02:55]} 27. fxe3 {[%emt 0:00:07]} h6 {[%emt 0:00:03]} 28. Kf2 {[%emt 0:02:27]} Kf8 {[%emt 0:01:02]} 29. Kg3 {[%emt 0:02:02]} g5 {[%emt 0:01:18]} 30. fxg6 {[%emt 0:03:58]} fxg6 {[%emt 0:01:07]} 31. Kf4 {[%emt 0:03:56]} g5+ {[%emt 0:03:36]} 32. Kf5 {[%emt 0:02:14]} Kg7 {[%emt 0:00:27]} 33. Be6 {[%emt 0:10:17]} Re7 {[%emt 0:07:25]} 34. b4 {[%emt 0:03:58]} Ne8 {[%emt 0:01:47]} 35. Ke5 {[%emt 0:14:15]} Nd6 {[%emt 0:00:19]} 36. Rxd6 {[%emt 0:04:30]} cxd6+ {[%emt 0:00:06]} 37. Kxd6 {[%emt 0:00:03]} Kf6 {[%emt 0:00:13]} 38. Bd7 {[%emt 0:00:48]} Re5 {[%emt 0:01:42]} 39. Kc6 {[%emt 0:00:57]} Re7 {[%emt 0:01:48]} 40. Bc8 {[%emt 0:00:42]} Ke5 {[%emt 0:00:39]} 41. Bxa6 {[%emt 0:00:25]} Ra7 {[%emt 0:00:50]} 42. Kxb5 {[%emt 0:00:15]} Rd7 {[%emt 0:00:10]} 43. Kc4 {[%emt 0:08:26]} Rd3 {[%emt 0:00:14]} 44. b5 {[%emt 0:00:20]} Rxe3 {[%emt 0:02:13]} 45. b6 {[%emt 0:00:12]} Kd6 {[%emt 0:01:21]} 46. Kd4 {[%emt 0:00:08]} Rxh3 {[%emt 0:00:07]} 47. c4 {[%emt 0:00:50]} Ra3 {[%emt 0:01:36]} 48. Bb5 {[%emt 0:00:33]} Rd3+ {[%emt 0:00:30]} 49. Kxe4 {[%emt 0:00:01]} Rd1 {[%emt 0:00:35]} 50. a4 {[%emt 0:00:23]} Kc5 {[%emt 0:00:30]} 51. a5 {[%emt 0:00:29]} Rd8 {[%emt 0:00:18]} 52. Kf5 {[%emt 0:00:32]} Kb4 {[%emt 0:00:36]} 53. a6 {[%emt 0:01:27]} Kc5 {[%emt 0:00:10]} 54. b7 {[%emt 0:00:10]} Kb6 {[%emt 0:00:07]} 55. c5+ {[%emt 0:00:47]} Kc7 {[%emt 0:00:12]} 56. Kg6 {[%emt 0:00:45]} Kb8 {[%emt 0:00:55]} 57. c6 {[%emt 0:00:27]} Rd5 {[%emt 0:00:44]} 58. Ba4 {[%emt 0:00:32]} Rd4 {[%emt 0:00:11]} 59. Bb3 {[%emt 0:00:32]} Rd6+ {[%emt 0:00:10]} 60. Kh5 {[%emt 0:00:30]} Rxc6 {[%emt 0:00:05]} 61. Bf7 {[%emt 0:00:24]} Rxa6 {[%emt 0:01:59]} 62. Bd5 {[%emt 0:00:19]} Kc7 {[%emt 0:00:17]} 63. Be4 {[%emt 0:00:09]} Rb6 {[%emt 0:00:32]} 64. Bf3 {[%emt 0:00:27]} Kd7 {[%emt 0:00:30]} 65. Be4 {[%emt 0:01:11]} Ke7 {[%emt 0:00:18]} 66. Bd5 {[%emt 0:00:29]} Kf8 {[%emt 0:00:10]} 67. Be4 {[%emt 0:00:31]} Kg7 {[%emt 0:00:12]} 68. Bg2 {[%emt 0:00:31]} Rb3 {[%emt 0:00:05]} 69. b8=Q {[%emt 0:01:01]} Rb5 {[%emt 0:02:32]} 70. Qb7+ Rxb7 {[%emt 0:00:00]} 71. Bxb7 {[%emt 0:00:08]} Kf6 {[%emt 0:00:00]} 72. Be4 {[%emt 0:01:10]} 0-1